[Event "ROU-chT Men Superliga 2018"]
[Site "Sovata"]
[Date "2018.11.27"]
[Round "4"]
[White "Andronescu, Madalin"]
[Black "Ognean, Mihnea-Ionut"]
[Result "0-1"]
[ECO "B33"]
[WhiteElo "2070"]
[BlackElo "2291"]
[Annotator "NA"]
[PlyCount "98"]
[EventDate "2018.11.24"]
[EventType "team-tourn"]
[EventCountry "ROU"]
[SourceTitle "playchess.com"]
[Source "ChessBase"]
[SourceQuality "1"]
[TimeControl "40/5400+30:1800+30"]

1. e4 {[%emt 0:00:00]} c5 {[%emt 0:00:00]} 2. Nf3 {[%emt 0:00:00]} Nc6 {[%emt 0:00:00]} 3. d4 {[%emt 0:00:00]} cxd4 {[%emt 0:00:00]} 4. Nxd4 {[%emt 0:00:00]} Nf6 {[%emt 0:00:07]} 5. Nc3 {[%emt 0:00:00]} e5 {[%emt 0:00:09]} 6. Ndb5 {[%emt 0:00:15]} d6 {[%emt 0:00:08]} 7. Bg5 {[%emt 0:00:25] LiveBook: 15786 Games} a6 {[%emt 0:00:20]} 8. Na3 {[%emt 0:00:04]} b5 {[%emt 0:00:05]} 9. Bxf6 {[%emt 0:00:03]} gxf6 {[%emt 0:00:07]} 10. Nd5 {[%emt 0:00:03]} f5 {[%emt 0:00:07]} 11. Bd3 {[%emt 0:00:05]} Be6 {[%emt 0:00:06]} 12. c3 {[%emt 0:00:03]} Bg7 {[%emt 0:01:57]} 13. Nxb5 {[%emt 0:00:06] B33: Sicilian: Pelikan and Sveshnikov Variations} axb5 {[%emt 0:00:27]} 14. Bxb5 {[%emt 0:00:04]} Bd7 {[%emt 0:00:04]} 15. exf5 {[%emt 0:00:05]} O-O {[%emt 0:19:40]} 16. O-O {[%emt 0:00:15]} e4 {[%emt 0:00:21]} 17. a4 {[%emt 0:00:05]} Re8 {[%emt 0:00:32]} 18. Qg4 {[%emt 0:00:05]} Kh8 {[%emt 0:00:03]} 19. Qf4 {[%emt 0:00:04] [#]} Re5 $146 {[%emt 0:07:32]} ({Predecessor:} 19... Be5 20. Qh6 Rc8 {0-1 (28) Tari,A (2593)-Zhigalko,S (2641) Katowice 2017}) 20. f6 {[%emt 0:06:27]} Rxd5 {[%emt 0:24:54]} 21. fxg7+ {[%emt 0:00:12]} Kxg7 {[%emt 0:00:05]} 22. Rad1 {[%emt 0:00:45]} Rxd1 {[%emt 0:16:56]} 23. Rxd1 {[%emt 0:00:23]} Ne5 {[%emt 0:01:06]} 24. Bxd7 {[%emt 0:00:39]} Nxd7 {[%emt 0:02:28]} 25. Qxd6 {[%emt 0:00:05]} Rxa4 {[%emt 0:01:38]} 26. h3 {[%emt 0:03:16]} Ra2 {[%emt 0:03:13]} 27. c4 {[%emt 0:00:04]} Rxb2 $16 {[%emt 0:05:11]} 28. c5 {[%emt 0:08:05]} Qh4 {[%emt 0:02:23]} 29. Qd4+ {[%emt 0:05:04]} Qf6 {[%emt 0:00:09]} 30. Qe3 {[%emt 0:00:02]} Ne5 {[%emt 0:03:02]} 31. Rd6 {[%emt 0:00:11]} Rb1+ {[%emt 0:02:42]} 32. Kh2 {[%emt 0:00:05]} Qh4 {[%emt 0:00:08]} 33. f3 {[%emt 0:02:36]} f6 {[%emt 0:01:46]} 34. Qxe4 {[%emt 0:07:55]} Qxe4 {[%emt 0:00:05]} 35. fxe4 {[%emt 0:00:02]} Rc1 {[%emt 0:00:16]} 36. Rd5 {[%emt 0:00:05]} Rc4 {[%emt 0:00:05]} 37. g4 {[%emt 0:01:15]} Rxe4 {[%emt 0:00:07]} 38. Kg3 {[%emt 0:00:02]} Re3+ {[%emt 0:01:07]} 39. Kg2 {[%emt 0:00:07]} Kg6 {[%emt 0:00:31]} 40. Rd8 {[%emt 0:00:00]} Rc3 {[%emt 0:00:00]} 41. Rg8+ {[%emt 0:01:20]} Kh6 {[%emt 0:06:45]} 42. h4 {[%emt 0:01:53]} Ng6 {[%emt 0:05:14]} 43. h5 {[%emt 0:00:33]} Ne5 {[%emt 0:00:13]} 44. Kf2 {[%emt 0:01:32]} Rxc5 {[%emt 0:00:48]} 45. Kg3 {[%emt 0:00:19]} Rc7 {[%emt 0:01:44]} 46. Ra8 {[%emt 0:01:52]} Rg7 {[%emt 0:00:31]} 47. Ra4 {[%emt 0:00:06]} Nxg4 {[%emt 0:02:10]} 48. Rxg4 {[%emt 0:00:15]} f5 {[%emt 0:00:13]} 49. Rxg7 {[%emt 0:01:22]} Kxg7 {[%emt 0:00:05]} 0-1

[Event "ROU-chT Men Superliga 2018"]
[Site "Sovata"]
[Date "2018.11.27"]
[Round "4"]
[White "Casangiu, Paul-Horatiu"]
[Black "Stoleriu, George"]
[Result "0-1"]
[ECO "A25"]
[WhiteElo "2027"]
[BlackElo "2362"]
[Annotator "NA"]
[PlyCount "52"]
[EventDate "2018.11.24"]
[EventType "team-tourn"]
[EventCountry "ROU"]
[SourceTitle "playchess.com"]
[Source "ChessBase"]
[SourceQuality "1"]
[TimeControl "40/5400+30:1800+30"]

1. c4 {[%emt 0:00:00]} e5 {[%emt 0:00:00]} 2. Nc3 {[%emt 0:02:42]} Nc6 {[%emt 0:00:00]} 3. e3 {[%emt 0:02:41]} g6 {[%emt 0:04:21]} 4. d4 {[%emt 0:01:51]} d6 {[%emt 0:01:40]} 5. d5 {[%emt 0:03:40]} Nce7 {[%emt 0:02:51]} 6. b4 {[%emt 0:04:51]} a5 {[%emt 0:03:18]} 7. Qa4+ {[%emt 0:03:47]} Bd7 {[%emt 0:01:05]} 8. Nb5 {[%emt 0:05:13]} Nf6 {[%emt 0:08:44]} 9. bxa5 {[%emt 0:03:16]} Bg7 {[%emt 0:08:08]} 10. Rb1 {[%emt 0:11:03]} Ne4 {[%emt 0:11:02]} 11. Qb4 {[%emt 0:04:51]} O-O {[%emt 0:06:31]} 12. Nc3 {[%emt 0:11:29]} c5 {[%emt 0:12:28]} 13. Qb2 {[%emt 0:03:48]} Bf5 {[%emt 0:09:27]} 14. Nxe4 {[%emt 0:01:45]} Bxe4 {[%emt 0:00:07]} 15. Ra1 {[%emt 0:00:33]} Bd3 {[%emt 0:02:00]} 16. Bd2 {[%emt 0:01:28]} e4 {[%emt 0:00:17]} 17. Bc3 {[%emt 0:00:09]} Qxa5 {[%emt 0:00:06]} 18. Rc1 {[%emt 0:04:16]} Bxc3+ {[%emt 0:01:07]} 19. Rxc3 {[%emt 0:01:33]} Bxf1 {[%emt 0:00:44]} 20. Kxf1 {[%emt 0:00:23]} Qxa2 {[%emt 0:00:03]} 21. Qxa2 {[%emt 0:01:57]} Rxa2 {[%emt 0:00:07]} 22. g4 {[%emt 0:01:52]} f5 {[%emt 0:01:47]} 23. g5 {[%emt 0:00:19]} f4 $19 {[%emt 0:03:15]} 24. exf4 {[%emt 0:00:20]} Rxf4 {[%emt 0:00:24]} 25. Ne2 {[%emt 0:03:47]} Rf3 {[%emt 0:00:24]} 26. Rg1 {[%emt 0:01:36]} Rxe2 {[%emt 0:00:04]} 0-1

[Event "ROU-chT Men Superliga 2018"]
[Site "Sovata"]
[Date "2018.11.28"]
[Round "5"]
[White "Morozov, Nichita"]
[Black "Georgescu, Tiberiu-Marian"]
[Result "1/2-1/2"]
[ECO "C91"]
[WhiteElo "2439"]
[BlackElo "2505"]
[Annotator "RC"]
[PlyCount "38"]
[EventDate "2018.11.24"]
[EventType "team-tourn"]
[EventCountry "ROU"]
[SourceTitle "playchess.com"]
[Source "ChessBase"]
[SourceQuality "1"]
[TimeControl "40/5400+30:1800+30"]

1. e4 {[%emt 0:00:00]} e5 {[%emt 0:02:17]} 2. Nf3 {[%emt 0:00:00]} Nc6 {[%emt 0:00:03]} 3. Bb5 {[%emt 0:00:00]} a6 {[%emt 0:00:03]} 4. Ba4 {[%emt 0:00:00]} Nf6 {[%emt 0:00:06]} 5. O-O {[%emt 0:00:00]} Be7 {[%emt 0:00:26]} 6. Re1 {[%emt 0:00:00]} b5 {[%emt 0:00:07]} 7. Bb3 {[%emt 0:00:05]} d6 {[%emt 0:00:10]} 8. c3 {[%emt 0:00:04]} O-O {[%emt 0:00:16]} 9. d4 {[%emt 0:00:03]} Bg4 {[%emt 0:00:17]} 10. Be3 {[%emt 0:00:04]} exd4 {[%emt 0:01:09]} 11. cxd4 {[%emt 0:00:51]} d5 {[%emt 0:00:08]} 12. e5 {[%emt 0:00:20]} Ne4 {[%emt 0:00:05]} 13. Nc3 {[%emt 0:01:00]} Nxc3 {[%emt 0:03:23]} 14. bxc3 {[%emt 0:00:02]} Bh5 {[%emt 0:06:53]} 15. Bc2 {[%emt 0:03:16]} Na5 {[%emt 0:11:15]} 16. Qb1 {[%emt 0:09:31]} Bg6 {[%emt 0:00:43]} 17. Bxg6 {[%emt 0:01:48]} fxg6 {[%emt 0:01:11]} 18. Nd2 {[%emt 0:03:32]} Qd7 {[%emt 0:02:56]} 19. h3 {[%emt 0:03:58]} g5 {[%emt 0:06:13]} 1/2-1/2

[Event "ROU-chT Men Superliga 2018"]
[Site "Sovata"]
[Date "2018.11.28"]
[Round "5"]
[White "Vasiesiu, Dan"]
[Black "Moldovan, Daniel"]
[Result "1/2-1/2"]
[ECO "B56"]
[WhiteElo "2394"]
[BlackElo "2406"]
[Annotator "RC"]
[PlyCount "28"]
[EventDate "2018.11.24"]
[EventType "team-tourn"]
[EventCountry "ROU"]
[SourceTitle "playchess.com"]
[Source "ChessBase"]
[SourceQuality "1"]
[TimeControl "40/5400+30:1800+30"]

1. e4 {[%emt 0:00:00]} c5 {[%emt 0:00:00]} 2. Nf3 {[%emt 0:00:00]} d6 {[%emt 0:00:00]} 3. d4 {[%emt 0:00:08]} cxd4 {[%emt 0:00:00]} 4. Nxd4 {[%emt 0:00:10]} Nf6 {[%emt 0:00:02]} 5. Nc3 {[%emt 0:00:06]} Bd7 {[%emt 0:00:05]} 6. f3 {[%emt 0:09:51]} e5 {[%emt 0:00:17]} 7. Nb3 {[%emt 0:00:10]} Be7 {[%emt 0:00:06]} 8. Be3 {[%emt 0:00:14]} O-O {[%emt 0:00:08]} 9. Qd2 {[%emt 0:00:49]} a5 {[%emt 0:00:44]} 10. a4 {[%emt 0:01:22]} Na6 {[%emt 0:00:12]} 11. Nd5 {[%emt 0:12:37]} Nxd5 {[%emt 0:02:02]} 12. exd5 {[%emt 0:00:14]} b6 {[%emt 0:03:07]} 13. Bb5 {[%emt 0:04:04]} Nc5 {[%emt 0:03:59]} 14. Nxc5 {[%emt 0:07:23]} bxc5 1/2-1/2

[Event "ROU-chT Men Superliga 2018"]
[Site "Sovata"]
[Date "2018.11.28"]
[Round "5"]
[White "Banzea, Alexandru-Bogdan"]
[Black "Ileana, George"]
[Result "1/2-1/2"]
[ECO "B78"]
[WhiteElo "2313"]
[BlackElo "2318"]
[Annotator "RC"]
[PlyCount "54"]
[EventDate "2018.11.24"]
[EventType "team-tourn"]
[EventCountry "ROU"]
[SourceTitle "playchess.com"]
[Source "ChessBase"]
[SourceQuality "1"]
[TimeControl "40/5400+30:1800+30"]

1. e4 {[%emt 0:02:39]} c5 {[%emt 0:00:00]} 2. Nf3 {[%emt 0:00:12]} d6 {[%emt 0:00:00]} 3. d4 {[%emt 0:00:28]} cxd4 {[%emt 0:00:00]} 4. Nxd4 {[%emt 0:00:08]} Nf6 {[%emt 0:00:00]} 5. Nc3 {[%emt 0:00:12]} g6 {[%emt 0:00:00]} 6. Be3 {[%emt 0:00:09]} Bg7 {[%emt 0:00:00]} 7. f3 {[%emt 0:00:08]} Nc6 {[%emt 0:00:09]} 8. Qd2 {[%emt 0:00:08]} O-O {[%emt 0:00:06]} 9. Bc4 {[%emt 0:00:12]} Bd7 {[%emt 0:00:09]} 10. O-O-O {[%emt 0:00:10]} Rc8 {[%emt 0:00:05]} 11. Bb3 {[%emt 0:00:09]} Nxd4 {[%emt 0:00:09]} 12. Bxd4 {[%emt 0:00:08]} b5 {[%emt 0:00:02]} 13. Nd5 {[%emt 0:00:15]} Nxd5 {[%emt 0:00:13]} 14. Bxg7 {[%emt 0:00:25]} Kxg7 {[%emt 0:00:04]} 15. exd5 {[%emt 0:00:13]} a5 {[%emt 0:00:38]} 16. a3 {[%emt 0:00:15]} Kg8 {[%emt 0:00:14]} 17. h4 {[%emt 0:00:26]} b4 {[%emt 0:09:23]} 18. axb4 {[%emt 0:01:09]} axb4 {[%emt 0:00:03]} 19. h5 {[%emt 0:06:12]} Bf5 {[%emt 0:00:18]} 20. hxg6 {[%emt 0:01:02]} Bxg6 {[%emt 0:00:24]} 21. Qxb4 {[%emt 0:00:23]} Rb8 {[%emt 0:03:05]} 22. Qd4 {[%emt 0:11:06]} Qa5 {[%emt 0:01:18]} 23. Qa4 {[%emt 0:02:20]} Qc5 {[%emt 0:01:45]} 24. Qd4 {[%emt 0:01:01]} Qa5 {[%emt 0:01:21]} 25. Qa4 {[%emt 0:03:32]} Qb6 {[%emt 0:04:34]} 26. Qd4 {[%emt 0:01:15]} Qa5 {[%emt 0:04:24]} 27. Qa4 {[%emt 0:01:04]} Qc5 {[%emt 0:02:23]} 1/2-1/2

[Event "ROU-chT Men Superliga 2018"]
[Site "Sovata"]
[Date "2018.11.28"]
[Round "5"]
[White "Ognean, Mihnea-Ionut"]
[Black "Vasiesiu, Victor"]
[Result "1-0"]
[ECO "A58"]
[WhiteElo "2291"]
[BlackElo "2270"]
[Annotator "NA RC"]
[PlyCount "49"]
[EventDate "2018.11.24"]
[EventType "team-tourn"]
[EventCountry "ROU"]
[SourceTitle "playchess.com"]
[Source "ChessBase"]
[SourceQuality "1"]
[TimeControl "40/5400+30:1800+30"]

1. d4 {[%emt 0:00:00]} Nf6 {[%emt 0:00:00]} 2. c4 {[%emt 0:00:00]} c5 {[%emt 0:00:00]} 3. d5 {[%emt 0:00:00]} b5 {[%emt 0:00:00]} 4. cxb5 {[%emt 0:00:00]} a6 {[%emt 0:00:00]} 5. bxa6 {[%emt 0:00:00]} g6 {[%emt 0:00:00]} 6. Nc3 {[%emt 0:00:03] A58: Benko/Volga Gambit: Lines with 5 bxa6} Bg7 {[%emt 0:00:00]} 7. e4 {[%emt 0:00:41]} O-O {[%emt 0:00:02]} 8. Nf3 {[%emt 0:00:03]} Qa5 {[%emt 0:00:26]} 9. Bd2 {[%emt 0:00:56]} Bxa6 {[%emt 0:00:07]} 10. Be2 {[%emt 0:00:22]} Qb4 {[%emt 0:00:12]} 11. Bxa6 {[%emt 0:15:05]} Nxa6 {[%emt 0:00:55]} 12. Qe2 {[%emt 0:02:49]} Qxb2 {[%emt 0:04:20]} 13. O-O $146 {[%emt 0:02:25]} ({Predecessor:} 13. Rb1 Qa3 {½-½ (76) Khairullin,I (2647)-Yuffa,D (2504) Doha 2015}) 13... d6 {[%emt 0:07:19]} 14. Rab1 {[%emt 0:14:38]} Qa3 {[%emt 0:00:27]} 15. Rb3 {[%emt 0:01:48]} Qa5 {[%emt 0:00:14]} 16. Rfb1 {[%emt 0:07:01]} Rfb8 {[%emt 0:09:40]} 17. e5 {[%emt 0:11:56]} Rxb3 {[%emt 0:02:33]} 18. Rxb3 {[%emt 0:00:48]} dxe5 {[%emt 0:05:26]} 19. Nxe5 {[%emt 0:00:38]} Bf8 $2 {[%emt 0:15:06]} (19... Nb4 $11) 20. Rb7 {[%emt 0:06:08]} Nb4 {[%emt 0:08:34] [#]} 21. d6 $1 {[%emt 0:12:57]} exd6 {[%emt 0:03:04] [#]} 22. Qf3 $1 {[%emt 0:01:18]} Bg7 {[%emt 0:04:31]} 23. Ng4 {[%emt 0:02:53]} ({Weaker is} 23. Nxf7 Qa6 $16) 23... Qd8 {[%emt 0:06:38] [#]} 24. Bg5 $16 {[%emt 0:03:59]} (24. Ne4 $1 $18 {and the rest is easy.}) 24... Qe8 {[%emt 0:00:29]} 25. Re7 {[%emt 0:00:03]} 1-0

[Event "ROU-chT Men Superliga 2018"]
[Site "Sovata"]
[Date "2018.11.28"]
[Round "5"]
[White "Vilcu, Matei-Stefan"]
[Black "Danilov, Vladimir"]
[Result "0-1"]
[ECO "C17"]
[WhiteElo "1892"]
[BlackElo "2386"]
[Annotator "NA RC"]
[PlyCount "76"]
[EventDate "2018.11.24"]
[EventType "team-tourn"]
[EventCountry "ROU"]
[SourceTitle "playchess.com"]
[Source "ChessBase"]
[SourceQuality "1"]
[TimeControl "40/5400+30:1800+30"]

1. e4 {[%emt 0:00:00]} e6 {[%emt 0:00:00]} 2. d4 {[%emt 0:00:33]} d5 {[%emt 0:00:12]} 3. Nc3 {[%emt 0:00:29]} Bb4 {[%emt 0:00:34]} 4. e5 {[%emt 0:00:05]} c5 {[%emt 0:00:17]} 5. Bd2 {[%emt 0:01:53]} Nc6 {[%emt 0:07:40]} 6. Nb5 {[%emt 0:02:12]} Bxd2+ {[%emt 0:00:43]} 7. Qxd2 {[%emt 0:00:12]} Nxd4 {[%emt 0:01:03]} 8. Nxd4 {[%emt 0:05:16]} cxd4 {[%emt 0:00:45]} 9. Qxd4 {[%emt 0:02:21] C17: French: 3 Nc3 Bb4 4 e5 c5 sidelines} (9. Nf3 Ne7 10. Nxd4 O-O 11. f4 Nc6 12. Nf3 Qb6 13. O-O-O Bd7 14. a3 Rfc8 15. Kb1 Na5 16. Nd4 Nc6 17. Nf3 Na5 18. Nd4 Nc6 19. Nb3 Ne7 {1-0 (47) Sethuraman,S (2631)-Safarli,E (2653) Sharjah 2018}) 9... Ne7 {[%emt 0:02:38]} 10. Nf3 {[%emt 0:04:53]} Bd7 {[%emt 0:01:46]} 11. Bd3 {[%emt 0:04:45]} Nc6 {[%emt 0:05:19]} 12. Qg4 {[%emt 0:05:43]} g6 $146 {[%emt 0:04:24]} ({Predecessor:} 12... O-O 13. Bxh7+ Kxh7 14. Qh5+ Kg8 15. Ng5 Qa5+ 16. c3 Rfe8 17. Qxf7+ Kh8 18. Qh5+ Kg8 19. f4 Ne7 20. Qf7+ Kh8 21. Rd1 Qa6 22. Rf1 {1-0 (22) Geiger,W (2158)-Preusse,G (2233) ICCF email 2011}) 13. O-O {[%emt 0:02:08]} Qe7 {[%emt 0:08:17]} 14. c4 {[%emt 0:08:19]} Nb4 {[%emt 0:08:28]} 15. Be2 {[%emt 0:02:12]} h5 {[%emt 0:02:35]} 16. Qf4 {[%emt 0:04:41]} dxc4 {[%emt 0:03:28]} 17. Bxc4 {[%emt 0:02:09]} Bc6 {[%emt 0:00:35]} 18. Nd4 {[%emt 0:05:42]} Rd8 {[%emt 0:03:44]} 19. a3 {[%emt 0:08:06]} Nd5 {[%emt 0:05:36]} 20. Qf3 {[%emt 0:13:56]} O-O {[%emt 0:07:21]} 21. Rac1 {[%emt 0:06:37]} Qg5 {[%emt 0:02:57]} 22. Nxc6 {[%emt 0:02:51]} bxc6 {[%emt 0:00:02]} 23. Qe4 {[%emt 0:01:18]} Rd7 {[%emt 0:04:41]} 24. Bxd5 {[%emt 0:05:17]} cxd5 {[%emt 0:04:19]} 25. Qd4 {[%emt 0:00:06]} a5 {[%emt 0:03:35]} 26. Rc5 {[%emt 0:01:47]} Ra8 {[%emt 0:00:27]} 27. f4 {[%emt 0:02:43]} Qg4 {[%emt 0:01:13]} 28. h3 {[%emt 0:00:58]} Qf5 {[%emt 0:01:13]} 29. Rfc1 {[%emt 0:00:43]} Rb7 {[%emt 0:01:38]} 30. Kh2 {[%emt 0:04:28]} Rab8 {[%emt 0:01:21]} 31. Rc8+ $17 {[%emt 0:00:38]} Rxc8 {[%emt 0:02:50]} 32. Rxc8+ {[%emt 0:00:00]} Kh7 {[%emt 0:00:01]} 33. Rc5 {[%emt 0:01:37]} Qb1 {[%emt 0:00:39]} 34. Rxa5 {[%emt 0:00:31]} Rxb2 {[%emt 0:01:01]} 35. Ra7 {[%emt 0:00:28]} Qc2 {[%emt 0:00:44]} 36. Qg1 {[%emt 0:00:40]} Kg7 {[%emt 0:00:10]} 37. Qf1 {[%emt 0:01:00]} h4 {[%emt 0:00:51]} 38. Qf3 {[%emt 0:00:17]} Qc5 {[%emt 0:00:28]} 0-1

[Event "ROU-chT Men Superliga 2018"]
[Site "Sovata"]
[Date "2018.11.29"]
[Round "6"]
[White "Ogleznev, Alexandr"]
[Black "Svetushkin, Dmitry"]
[Result "0-1"]
[ECO "C70"]
[WhiteElo "2333"]
[BlackElo "2605"]
[Annotator "RC"]
[PlyCount "128"]
[EventDate "2018.11.24"]
[EventType "team-tourn"]
[EventCountry "ROU"]
[SourceTitle "playchess.com"]
[Source "ChessBase"]
[SourceQuality "1"]
[TimeControl "40/5400+30:1800+30"]

1. e4 {[%emt 0:00:00]} e5 {[%emt 0:00:00]} 2. Nf3 {[%emt 0:00:00]} Nc6 {[%emt 0:00:00]} 3. Bb5 {[%emt 0:00:00]} a6 {[%emt 0:00:00]} 4. Ba4 {[%emt 0:00:04]} b5 {[%emt 0:00:00]} 5. Bb3 {[%emt 0:00:08]} g6 {[%emt 0:00:02]} 6. O-O {[%emt 0:03:17]} Bg7 {[%emt 0:00:23]} 7. c3 {[%emt 0:00:10]} Nge7 {[%emt 0:00:09]} 8. d4 {[%emt 0:00:34]} exd4 {[%emt 0:00:08]} 9. cxd4 {[%emt 0:00:14]} O-O {[%emt 0:00:08]} 10. d5 {[%emt 0:09:45]} Na5 {[%emt 0:00:30]} 11. Bd2 {[%emt 0:00:19]} c5 {[%emt 0:12:57]} 12. d6 {[%emt 0:41:50]} Nec6 {[%emt 0:01:11]} 13. Bc3 {[%emt 0:03:20]} Nxb3 {[%emt 0:01:17]} 14. axb3 {[%emt 0:04:18]} Bb7 {[%emt 0:03:23]} 15. Bxg7 {[%emt 0:03:57]} Kxg7 {[%emt 0:00:18]} 16. Nc3 {[%emt 0:12:02]} Nb4 {[%emt 0:06:27]} 17. Re1 {[%emt 0:02:30]} Re8 {[%emt 0:03:22]} 18. Qd2 {[%emt 0:00:40]} Qf6 {[%emt 0:03:56]} 19. Rad1 {[%emt 0:01:43]} h6 {[%emt 0:04:57]} 20. Re3 {[%emt 0:00:58]} Re6 {[%emt 0:01:33]} 21. Rde1 {[%emt 0:03:20]} Qf4 {[%emt 0:03:49]} 22. Rd1 {[%emt 0:02:51]} Rae8 {[%emt 0:03:12]} 23. Ne2 {[%emt 0:00:36]} Qf6 {[%emt 0:00:07]} 24. e5 {[%emt 0:00:34]} Qf5 {[%emt 0:03:10]} 25. Ng3 {[%emt 0:04:34]} Qc2 {[%emt 0:01:20]} 26. Qxc2 {[%emt 0:02:52]} Nxc2 {[%emt 0:00:26]} 27. Rc3 {[%emt 0:00:07]} Nd4 {[%emt 0:10:53]} 28. Nxd4 {[%emt 0:00:08]} cxd4 {[%emt 0:00:03]} 29. Rc7 {[%emt 0:01:24]} Bc6 {[%emt 0:00:11]} 30. f4 {[%emt 0:00:09]} f6 {[%emt 0:00:45]} 31. Ne2 {[%emt 0:01:46]} fxe5 {[%emt 0:00:29]} 32. fxe5 {[%emt 0:00:04]} Rxe5 {[%emt 0:00:54]} 33. Nxd4 {[%emt 0:00:06]} Rd5 {[%emt 0:00:48]} 34. Rc1 {[%emt 0:00:47]} Rxd4 {[%emt 0:03:16]} 35. R1xc6 {[%emt 0:00:04]} Re2 {[%emt 0:00:24]} 36. Rxd7+ {[%emt 0:01:25]} Kf6 {[%emt 0:00:11]} 37. h3 {[%emt 0:01:18]} Rdd2 {[%emt 0:00:34]} 38. Rh7 {[%emt 0:00:22]} Rxg2+ {[%emt 0:01:11]} 39. Kf1 {[%emt 0:00:08]} Rh2 {[%emt 0:04:19]} 40. d7+ {[%emt 0:00:00]} Kf5 {[%emt 0:00:00]} 41. Rf7+ {[%emt 0:08:41]} Kg5 {[%emt 0:04:48]} 42. Kg1 {[%emt 0:01:13]} Rxh3 {[%emt 0:01:47]} 43. Rff6 {[%emt 0:08:36]} Rxd7 {[%emt 0:01:29]} 44. Rxg6+ {[%emt 0:00:08]} Kf4 {[%emt 0:00:44]} 45. Rxa6 {[%emt 0:03:20]} Rxb3 {[%emt 0:01:14]} 46. Raf6+ {[%emt 0:03:40]} Ke4 {[%emt 0:01:53]} 47. Re6+ {[%emt 0:01:54]} Kd5 {[%emt 0:01:02]} 48. Re2 {[%emt 0:00:25]} Rh7 {[%emt 0:00:18]} 49. Rd2+ {[%emt 0:02:15]} Kc5 {[%emt 0:00:37]} 50. Rc2+ {[%emt 0:02:01]} Kb4 {[%emt 0:00:18]} 51. Rg4+ {[%emt 0:00:39]} Ka5 {[%emt 0:00:03]} 52. Rh4 {[%emt 0:01:40]} Re3 {[%emt 0:01:30]} 53. Kf2 {[%emt 0:00:14]} Re5 {[%emt 0:00:16]} 54. Rc6 {[%emt 0:02:42]} Rf7+ {[%emt 0:00:15]} 55. Kg3 {[%emt 0:00:20]} Rg5+ {[%emt 0:00:04]} 56. Kh3 {[%emt 0:00:32]} Rf3+ {[%emt 0:02:34]} 57. Kh2 {[%emt 0:00:04]} h5 {[%emt 0:02:48]} 58. Rc2 {[%emt 0:00:08]} Rd3 {[%emt 0:00:40]} 59. Re4 {[%emt 0:01:10]} Rgd5 {[%emt 0:01:37]} 60. Ree2 {[%emt 0:00:10]} Ka4 {[%emt 0:00:11]} 61. Kg2 {[%emt 0:00:36]} Kb3 {[%emt 0:00:27]} 62. Kf2 {[%emt 0:00:24]} h4 {[%emt 0:00:45]} 63. Kg2 {[%emt 0:00:22]} Rg3+ {[%emt 0:00:32]} 64. Kh2 {[%emt 0:00:09]} Rdd3 {[%emt 0:00:07]} 0-1

[Event "ROU-chT Men Superliga 2018"]
[Site "Sovata"]
[Date "2018.11.29"]
[Round "6"]
[White "Nastase, Robert-Paul"]
[Black "Banzea, Alexandru-Bogdan"]
[Result "0-1"]
[ECO "B12"]
[WhiteElo "2296"]
[BlackElo "2313"]
[Annotator "RC"]
[PlyCount "80"]
[EventDate "2018.11.24"]
[EventType "team-tourn"]
[EventCountry "ROU"]
[SourceTitle "playchess.com"]
[Source "ChessBase"]
[SourceQuality "1"]
[TimeControl "40/5400+30:1800+30"]

1. e4 {[%emt 0:00:00]} c6 {[%emt 0:00:33]} 2. d4 {[%emt 0:00:00]} d5 {[%emt 0:00:21]} 3. e5 {[%emt 0:00:00]} Bf5 {[%emt 0:00:25]} 4. h4 {[%emt 0:00:00]} h5 {[%emt 0:00:43]} 5. Bd3 {[%emt 0:00:00]} Bxd3 {[%emt 0:00:29]} 6. Qxd3 {[%emt 0:00:00]} Qa5+ {[%emt 0:00:56]} 7. Nd2 {[%emt 0:00:00]} e6 {[%emt 0:00:25]} 8. Ngf3 {[%emt 0:00:01]} Qa6 {[%emt 0:00:17]} 9. c4 {[%emt 0:00:03]} Bb4 {[%emt 0:03:33]} 10. O-O {[%emt 0:00:36]} Ne7 {[%emt 0:00:26]} 11. b3 {[%emt 0:01:57]} c5 {[%emt 0:00:47]} 12. Bb2 {[%emt 0:05:43]} Nbc6 {[%emt 0:13:13]} 13. dxc5 {[%emt 0:18:12]} Bxc5 {[%emt 0:13:41]} 14. a3 {[%emt 0:01:37]} dxc4 {[%emt 0:10:10]} 15. Nxc4 {[%emt 0:08:26]} Rd8 {[%emt 0:03:10]} 16. Qe4 {[%emt 0:28:21]} Nf5 {[%emt 0:02:15]} 17. Rfd1 {[%emt 0:00:05]} O-O {[%emt 0:01:33]} 18. Qf4 {[%emt 0:02:00]} Qb5 {[%emt 0:07:31]} 19. Nfd2 {[%emt 0:24:07]} Ncd4 {[%emt 0:04:46]} 20. Kh1 {[%emt 0:00:46]} Nxb3 {[%emt 0:07:15]} 21. a4 {[%emt 0:00:50]} Qb4 {[%emt 0:01:48]} 22. Ba3 {[%emt 0:03:37]} Qc3 {[%emt 0:01:18]} 23. Ne4 {[%emt 0:04:25]} Rxd1+ {[%emt 0:03:11]} 24. Rxd1 {[%emt 0:00:02]} Qc2 {[%emt 0:00:15]} 25. Rg1 {[%emt 0:01:03]} Bxa3 {[%emt 0:01:49]} 26. Nxa3 {[%emt 0:00:27]} Qc6 {[%emt 0:01:15]} 27. g4 {[%emt 0:00:07]} hxg4 {[%emt 0:05:10]} 28. Rxg4 {[%emt 0:00:34]} Rd8 {[%emt 0:03:01]} 29. Kh2 {[%emt 0:00:07]} Kf8 {[%emt 0:00:50]} 30. Nb5 {[%emt 0:00:43]} Rd1 {[%emt 0:03:30]} 31. Nbc3 {[%emt 0:01:04]} Rd3 {[%emt 0:01:06]} 32. Ne2 {[%emt 0:00:20]} Qc2 {[%emt 0:01:02]} 33. N4g3 {[%emt 0:00:36]} Nbd4 {[%emt 0:02:29]} 34. Nxf5 {[%emt 0:00:31]} Nxf5 {[%emt 0:00:25]} 35. Qb4+ {[%emt 0:00:38]} Kg8 {[%emt 0:00:24]} 36. Re4 {[%emt 0:00:30]} Rd2 {[%emt 0:00:27]} 37. Rc4 {[%emt 0:00:13]} Qd3 {[%emt 0:01:12]} 38. Rc8+ {[%emt 0:00:12]} Kh7 {[%emt 0:00:01]} 39. Qf8 {[%emt 0:00:51]} Qxe2 {[%emt 0:00:16]} 40. Qh8+ {[%emt 0:00:00]} Kg6 {[%emt 0:00:00]} 0-1